Cogmind - Beta 12 X1 @@@ ROGUE MODE // 2022.08.23 @ 17:52:09 Player: btmk16 Result: Self-destructed Performance ------------- Evolutions (1) 500 Regions Visited (3) 600 Robots Destroyed (8) 40 Value Destroyed (116) 116 Prototype IDs (0) 0 Alien Tech Used (0) 0 Bonus (200) 200 TOTAL SCORE: 1456 Bonus ------- Pacifist 200 Cogmind --------- Core Integrity 272/400 Matter 91/300 Energy 89/100 System Corruption 0% Temperature Cool (6) Movement Flying (40) Location -9/Storage Parts ------- > --- POWER (1) -------- (None) > --- PROPULSION (3) --- Flight Unit > --- UTILITY (3) ------ (None) > --- WEAPON (2) ------- Light Assault Rifle > --- INVENTORY (5) ---- Ion Engine Wheel Compact Wheel EM Pulse Gun Light Assault Rifle Peak State ------------ > --- POWER ------------ (None) > --- PROPULSION ------- Light Treads Light Treads Flight Unit > --- UTILITY ---------- (None) > --- WEAPON ----------- Light Assault Rifle Grenade Launcher > --- INVENTORY -------- Ion Engine Wheel Compact Wheel EM Pulse Gun Light Assault Rifle [Rating: 5] Favorites ----------- Power None Propulsion Light Treads Treads Light Treads Flight Unit Flight Unit Utility None Weapon Light Assault Rifle Ballistic Gun Light Assault Rifle Launcher Grenade Launcher Build | -11 -10 -9 -9 ------- Run | Scr Mat Mat Sto Slots Evolved 2 | . . 2 . Power . | . . . . Propulsion 1 | . . 1 . Utility 1 | . . 1 . Weapon . | . . . . Parts Attached 8 | 4 . 2 2 Power . | . . . . Engine . | . . . . Core . | . . . . Reactor . | . . . . Propulsion 5 | 2 . 1 2 Treads 2 | 2 . . . Leg . | . . . . Wheel . | . . . . Hover . | . . . . Flight 3 | . . 1 2 Utility . | . . . . Device . | . . . . Storage . | . . . . Processor . | . . . . Hackware . | . . . . Protection . | . . . . Artifact . | . . . . Weapon 3 | 2 . 1 . Energy Gun . | . . . . Energy Cannon . | . . . . Ballistic Gun 2 | 2 . . . Ballistic Cannon . | . . . . Launcher 1 | . . 1 . Special Weapon . | . . . . Impact Weapon . | . . . . Slashing Weapon . | . . . . Piercing Weapon . | . . . . Special Melee Weapon . | . . . . Unidentified Prototypes . | . . . . Parts Lost 3 | . . . 3 Power . | . . . . Propulsion 2 | . . . 2 Utility . | . . . . Weapon 1 | . . . 1 Highest Loss Streak 3 | . . . 3 To Critical Strikes . | . . . . Average Slot Usage (%) 41 | . 57 39 29 Treads 13 | . 28 13 . Flight 5 | . . 4 11 Ballistic Gun 17 | . 28 15 11 Launcher 5 | . . 6 7 Naked Turns . | . . . . Heaviest Build 4 | 2 2 4 4 Greatest Support 4 | 3 3 4 4 Greatest Overweight (x) 1 | . . 1 . Average Overweight (x) . | . . . . Largest Inventory Capacity 5 | 5 5 5 5 Average Capacity 5 | 5 5 5 5 Most Carried 5 | 5 5 5 5 Average Carried 4 | 3 4 5 5 Final Capacity 5 | 5 5 5 5 Final Carried 5 | 5 5 5 5 Class Distribution -------------------- 100% | Mutant Dominant Class ---------------- Mutant | -10/Materials Mutant | -9/Materials Mutant | -9/Storage Resources | -11 -10 -9 -9 ----------- Run | Scr Mat Mat Sto Matter Collected 99 | 58 . 5 36 Remotely . | . . . . Salvage Created 103 | . . 13 90 Parts 12 | . . 3 9 Haulers Intercepted 1 | . . . 1 Recyclers Shooed . | . . . . Parts Field Recycled . | . . . . Retrieved Matter . | . . . . Parts Self-Destructed . | . . . . Prevented . | . . . . Kills | -11 -10 -9 -9 ------- Run | Scr Mat Mat Sto Combat Hostiles Destroyed 7 | . . 3 4 AOE 7 | . . 3 4 Classes Destroyed 3 | . . 1 2 Hauler 1 | . . . 1 Swarmer 6 | . . 3 3 Grunt 1 | . . . 1 Best Kill Streak 5 | . . 3 5 Combat Bots Only 4 | . . 3 4 Max Kills in Single Turn 4 | . . 2 4 Gunslinging . | . . . . Exploded 3 | . . 2 3 Melee . | . . . . Uniques/NPCs Destroyed . | . . . . Combat | -11 -10 -9 -9 -------- Run | Scr Mat Mat Sto Damage Taken 290 | . 11 23 256 Core 128 | . . 7 121 Absorbed by Shields . | . . . . Core Remaining (%) 100 | 100 100 . . Volleys Fired 4 | . . 2 2 Largest 2 | . . 2 2 Hottest 50 | . . 50 50 Shots Fired 7 | . . 3 4 Gun 3 | . . 1 2 Cannon . | . . . . Launcher 4 | . . 2 2 Special . | . . . . Kinetic 3 | . . 1 2 Thermal . | . . . . Explosive 4 | . . 2 2 Electromagnetic . | . . . . Robot Hit Streak 4 | . . . 4 Robot Miss Streak . | . . . . Penetration Max . | . . . . Secondary Targets . | . . . . Shots Hit Robots 4 | . . . 4 Core Hits 11 | . . 4 7 Critical Kills . | . . . . Critical Parts Destroyed . | . . . . Critical Strikes . | . . . . Melee Attacks . | . . . . Impact . | . . . . Slashing . | . . . . Piercing . | . . . . Sneak Attacks . | . . . . Combat Hostiles . | . . . . Follow-up Attacks . | . . . . Damage Inflicted 631 | . . 195 436 Guns 17 | . . . 17 Cannons . | . . . . Explosions 614 | . . 195 419 Melee . | . . . . Ramming . | . . . . Kinetic 17 | . . . 17 Thermal . | . . . . Explosive 614 | . . 195 419 Electromagnetic . | . . . . Impact . | . . . . Slashing . | . . . . Piercing . | . . . . Highest Corruption . | . . . . Average Corruption . | . . . . Corruption Purged . | . . . . Corruption Blocked . | . . . . Overload Shots . | . . . . Overflow Damage 9 | . . . 9 Projectiles . | . . . . Explosions 9 | . . . 9 Melee . | . . . . Knockbacks . | . . . . Impact . | . . . . Kinetic . | . . . . Secondary . | . . . . Self-Inflicted Damage 44 | . . 9 35 Shots 2 | . . 1 1 Rammed . | . . . . Targets Rammed . | . . . . Kicked . | . . . . Crushed . | . . . . Highest Temperature 8 | . . . 8 Average Temperature 5 | . . . 5 Received Heat Transfer 99 | . 6 . 93 Siege Activations . | . . . . Robots Corrupted . | . . . . Combat Hostiles . | . . . . Parts Fried . | . . . . Impact Corruptions . | . . . . Robots Melted . | . . . . Combat Hostiles . | . . . . Parts Melted . | . . . . Heat Transferred . | . . . . Parts Sabotaged . | . . . . Parts Stolen . | . . . . Parts Stripped . | . . . . Power Chain Reactions . | . . . . Missiles Intercepted . | . . . . Alert | -11 -10 -9 -9 ------- Run | Scr Mat Mat Sto Peak Influence 184 | . 21 129 184 Initial 53 | . . 8 53 Average 50 | . 4 82 114 Maximum Alert Level . | . . . . Low Security (%) 100 | 100 100 100 100 Level 1 . | . . . . Level 2 . | . . . . Level 3 . | . . . . Level 4 . | . . . . Level 5 . | . . . . High Security . | . . . . Max Security . | . . . . Squads Dispatched . | . . . . Investigation . | . . . . Extermination . | . . . . Reinforcement . | . . . . Assault . | . . . . Garrison . | . . . . Intercept . | . . . . Searches Triggered . | . . . . Construction Impeded . | . . . . Haulers Reinforced . | . . . . Active Scanning Responses . | . . . . Cargo Convoy Interrupts . | . . . . Stealth | -11 -10 -9 -9 --------- Run | Scr Mat Mat Sto Distress Signals . | . . . . Communications Jammed . | . . . . Distress Signals . | . . . . Times Spotted 15 | . 3 3 9 Peak Tracking Total 9 | . 2 3 9 Tactical Retreats . | . . . . Traps | -11 -10 -9 -9 ------- Run | Scr Mat Mat Sto Traps Triggered 1 | . . . 1 Indirectly . | . . . . Trap Hack Attempts . | . . . . Triggered . | . . . . Disarmed . | . . . . Reprogrammed . | . . . . Reused . | . . . . Traps Extracted . | . . . . Installed . | . . . . Triggered . | . . . . Machines | -11 -10 -9 -9 ---------- Run | Scr Mat Mat Sto Machines Disabled 2 | . . . 2 Max in Single Turn 2 | . . . 2 Machines Sabotaged . | . . . . Garrisons Compromised . | . . . . Overloaded Fab Kills . | . . . . Hacking | -11 -10 -9 -9 --------- Run | Scr Mat Mat Sto Machines Accessed 2 | . 2 . . Terminals 2 | . 2 . . Fabricators . | . . . . Repair Stations . | . . . . Recycling Units . | . . . . Scanalyzers . | . . . . Garrison Access . | . . . . Total Hacks 7 | . 7 . . Successful 3 | . 3 . . Failed 4 | . 4 . . Catastrophic . | . . . . Database Lockouts . | . . . . Manual 4 | . 4 . . Terminals 7 | . 7 . . Fabricators . | . . . . Repair Stations . | . . . . Recycling Units . | . . . . Scanalyzers . | . . . . Garrison Access . | . . . . Terminal Hacks 2 | . 2 . . Terminal Index 1 | . 1 . . Alert Level 1 | . 1 . . Fabricator Hacks . | . . . . Repair Station Hacks . | . . . . Recycling Unit Hacks . | . . . . Scanalyzer . | . . . . Garrison Access Hacks . | . . . . Unauthorized Hacks 1 | . 1 . . Terminals 1 | . 1 . . Operators 1 | . 1 . . Fabricators . | . . . . Repair Stations . | . . . . Recycling Units . | . . . . Scanalyzers . | . . . . Garrison Access . | . . . . Data Cores Recovered . | . . . . Used . | . . . . Hacking Detections 2 | . 2 . . Full Trace Events 1 | . 1 . . Feedback Events . | . . . . Feedback Blocked . | . . . . Robot Schematics Acquired . | . . . . Robots Built . | . . . . Authchips . | . . . . Time . | . . . . Total Robot Build Rating . | . . . . Part Schematics Acquired . | . . . . Parts Built . | . . . . Authchips . | . . . . Time . | . . . . Total Part Build Rating . | . . . . Parts Repaired . | . . . . Time . | . . . . Parts Recycled . | . . . . Recycled Matter . | . . . . Retrieved Matter . | . . . . Retrieved Components . | . . . . Parts Scanalyzed . | . . . . Part Schematics Acquired . | . . . . Parts Damaged . | . . . . Bothacking | -11 -10 -9 -9 ------------ Run | Scr Mat Mat Sto Used RIF Installer . | . . . . Robots Hacked . | . . . . Non-combat . | . . . . Combat . | . . . . Robot Hacks Applied . | . . . . Relay Couplers Released . | . . . . Fabnet Peak Effective % . | . . . . Robots Rewired . | . . . . Allies Hacked . | . . . . Hacks Repelled . | . . . . Allies | -11 -10 -9 -9 -------- Run | Scr Mat Mat Sto Total Allies . | . . . . Largest Group . | . . . . Highest-Rated Group . | . . . . Highest-Rated Ally . | . . . . Total Orders . | . . . . Ally Attacks . | . . . . Total Damage . | . . . . Kills . | . . . . Allies Corrupted . | . . . . Allies Melted . | . . . . Intel | -11 -10 -9 -9 ------- Run | Scr Mat Mat Sto Robot Analysis Total . | . . . . Derelict Logs Recovered . | . . . . Drone Launches . | . . . . Drone Recoveries . | . . . . Exploration | -11 -10 -9 -9 ------------- Run | Scr Mat Mat Sto Turns Passed 142 | 29 39 48 26 Spaces Moved 200 | 36 75 50 39 Core 140 | 36 75 28 1 Treads . | . . . . Legs . | . . . . Wheels . | . . . . Hover . | . . . . Flight 60 | . . 22 38 Fastest Speed 40 | 50 50 40 40 Average Speed 48 | 50 50 50 40 Slowest Speed 100 | 50 50 100 50 Overloaded Moves . | . . . . Propulsion Burnouts . | . . . . Robots Hopped 1 | . . . 1 Cave-ins Triggered . | . . . . Exploration Rate (%) 11 | 3 23 7 14 Regions Visited 3 Branch Regions 1 Pre-discovered Areas . | . . . . Known Exits Taken . | . . . . Unknown Exits Taken 3 | 1 1 1 . Scrap Searched . | . . . . Spaces Dug 6 | . . 6 . Terrain Destroyed 8 | . . 6 2 Melee . | . . . . Projectile . | . . . . AOE 8 | . . 6 2 Terrain Rammed . | . . . . Walls Destroyed . | . . . . Machines Disabled . | . . . . Actions | -11 -10 -9 -9 --------- Run | Scr Mat Mat Sto Total 232 | 44 76 69 43 Wait 15 | . . 14 1 Move 195 | 35 74 49 37 Hop 1 | . . . 1 Pick Up 6 | 5 1 . . Fast Attach 7 | 4 . 1 2 Attach . | . . . . Detach . | . . . . Swap 1 | . . 1 . Drop 3 | . 1 2 . Fire 4 | . . 2 2 Melee . | . . . . Ram . | . . . . Kick . | . . . . Crush . | . . . . Escape Stasis . | . . . . Rewire . | . . . . Trap . | . . . . Miscellaneous . | . . . . Route ------- -11/Scrapyard -10/Materials -9/Materials -9/Storage History --------- Turn | Location | Event 15 | -11/Scrapyard | Discovered new exit (range 15) 30 | -11/Scrapyard | Entered Materials 66 | -10/Materials | Discovered new exit (range 9) 69 | -10/Materials | Entered another Materials area 69 | -9/Materials | Evolved 2 slots: Propulsion x1, Utility x1 99 | -9/Materials | Discovered new exit (range 11) 117 | -9/Materials | Entered Storage 143 | -9/Storage | Self-destructed Last Messages --------------- GOAL=ESCAPE 00127_ Triggered EMP Trap. 00127_ A bubble of electromagnetic force engulfs the area. 00127_ Door malfunctions. 00129_ Transfer Shaft disabled. 00129_ Destroyed Flight Unit. 00129_ S-10 Pest destroyed. 00129_ Transfer Shaft disabled. 00132_ Grenade Launcher destroyed. 00132_ Destroyed Grenade Launcher. 00132_ S-10 Pest destroyed. 00132_ A-02 Transporter destroyed. 00132_ G-34 Mercenary destroyed. 00135_ Acquired 24 matter. 00136_ Acquired Flight Unit. 00137_ Flight Unit destroyed. 00140_ Acquired 12 matter. 00140_ Critical hit (Burn: +37). 00140_ Flight Unit destroyed. 00141_ Acquired Flight Unit. Map ----- +----------------------------------------------------+ | | | | | | | | | | | | | | | | | | | | | | | | | | | | | | | | | | | | | | | | | | | #???????###?#################????????????????????? | | ??????# # #????????????????????? | | ??????# # [ #????????????????????? | | ??????# """"" # = #????????????????????? | | ?????# """"" # s @ #????????????????????? | | ?????# """"" # """ "" ##???????????????????? | | ?????# # "" "" #???????????????????? | | """"?# # " !* " ##???????????????????? | | ? ??# # = g #????????????????????? | | ###+#########+##+##### Yg#######?????????????????? | | ![%[! ??????????? | | =** ??????????? | | = ??????????? | | #######################/########### ???????????? | | ?????????????????????? ????????????????????????? | | ?????????????????????? ????????????????????????? | | ?????????????????????? ???????????????????????? | | ?????????????????????? ???????????????????????? | | ?????????????????????? ??????????????????????? | | ?????????????????????? ??????????????????????? | | ????????????????????? ?????????????????????? | | ????????????????????? ?????????????????????? | | ?????????????????????########????????????????????? | | ?????????????????????????????????????????????????? | | ?????????????????????????????????????????????????? | | ?????????????????????????????????????????????????? | | ?????????????????????????????????????????????????? | | ?????????????????????????????????????????????????? | | ?????????????????????????????????????????????????? | +----------------------------------------------------+ Best States ------------- Heat Dissipation 28 Energy Generation 5 Energy Capacity 100 Matter Stores 118 Matter Capacity 300 Sight Range 16 Terrain Scan Density 10 Evasion (%) 62 Recoil Reduction 2 Item Schematics ----------------- None Robot Schematics ------------------ None Fabricated ------------ Nothing Alien Tech Used ----------------- None Achievements -------------- None Challenges ------------ None Game ------ Seed GammaHeatSteel Manual? 0 Play Time 00:03:22 Cumulative 467.2 hours Start 2022.08.23 @ 17:49:33 End 2022.08.23 @ 17:52:09 Sessions 1 Manual Loads 0 Difficulty Rogue Special Mode None Game No. 518 Rogue 517 Adventurer 0 Explorer 1 Win Type - Total 14 Types 9/0/2/3/0/0/0/0/0 Lore% 79 Gallery% 88 Achievement% 69 Wizard Run 0 Options --------- ASCII 0 Keyboard 1 Movement Vi Keybinds 0 Fullscreen 1 Font 18/SmallcapsGlow Map View 76x50 Tactical HUD 1 Map Filters NONE Filters NONE Steam 1 RUN: de326159-9184-41eb-9c65-7e08ac415912